fUST/lending_fUST_20240927
["ID","MTS","AMOUNT","RATE_DAILY","PERIOD"]
[339226068,1727376437990,-371.194741,0.00019068,2]
[339226069,1727376438012,-371.194741,0.00019068,2]
[339226070,1727376438034,-152.549108,0.00019068,2]
[339226071,1727376438056,-215.867688,0.00019068,2]
[339226072,1727376438078,-151.0,0.00019068,2]
[339226073,1727376438099,-215.867688,0.00019068,2]
[339226074,1727376438120,-151.0,0.00019068,2]
[339226075,1727376438141,-151.0,0.00019068,2]
[339226076,1727376438162,-151.0,0.00019068,2]
[339226077,1727376438184,-209.41744,0.00019068,2]
[339226078,1727376438205,-150.112233,0.000191,2]
[339226079,1727376438226,-150.112233,0.000191,2]
[339226080,1727376438247,-173.899286,0.00019178,2]
[339226081,1727376438272,-208.424075,0.00019178,2]
[339226082,1727376438292,-445.3333304,0.00019178,4]
[339226083,1727376438316,-230.801413,0.00019178,2]
[339226084,1727376438338,-150.112233,0.000192,2]
[339226085,1727376438359,-2528.16504166,0.00019221,2]
[339226086,1727376438381,-485.492217,0.0001928,2]
[339226087,1727376438407,-485.492217,0.0001928,2]
[339226088,1727376438429,-281.366768,0.0001928,2]
[339226089,1727376438451,-281.366768,0.0001928,2]
[339226090,1727376438472,-593.319675,0.0001928,2]
[339226091,1727376438493,-593.319675,0.0001928,2]
[339226092,1727376438516,-151.0,0.0001928,2]
[339226093,1727376438538,-383.419228,0.0001928,2]
[339226094,1727376438559,-151.0,0.0001928,2]
[339226095,1727376438581,-383.419228,0.0001928,2]
[339226096,1727376438603,-151.0,0.0001928,2]
[339226097,1727376438625,-56767.6896459,0.0001928,3]
[339226098,1727376438647,-77043.9308628,0.0001928,3]
[339226099,1727376438668,-51224.64613202,0.0001929,2]
[339226100,1727376438689,-366.35752811,0.00019321,2]
[339226101,1727376438709,-171.16061956,0.00019321,2]
[339226102,1727376438859,-330.57164224,0.00019321,2]
[339226103,1727376438880,-272.140624,0.0001939,2]
[339226104,1727376438901,-151.0,0.0001939,2]
[339226105,1727376438923,-151.0,0.0001939,2]
[339226106,1727376438944,-164.315641,0.0001939,2]
[339226107,1727376438966,-211.274657,0.0001939,2]
[339226108,1727376438988,-207.287527,0.0001939,2]
[339226109,1727376439010,-207.287527,0.0001939,2]
[339226110,1727376439032,-207.287527,0.0001939,2]
[339226111,1727376439053,-207.287527,0.0001939,2]
[339226112,1727376439075,-151.0,0.0001939,2]
[339226113,1727376439096,-151.0,0.0001939,2]
[339226114,1727376439117,-151.0,0.0001939,2]
[339226115,1727376439137,-151.0,0.0001939,2]
[339226116,1727376439158,-151.0,0.0001939,2]
[339226117,1727376439180,-151.0,0.0001939,2]
[339226118,1727376439201,-156.381959,0.0001939,2]
[339226119,1727376439222,-156.381959,0.0001939,2]
[339226120,1727376439244,-156.381959,0.0001939,2]
[339226121,1727376439266,-156.381959,0.0001939,2]
[339226122,1727376439286,-151.0,0.0001939,2]
[339226123,1727376439309,-151.0,0.0001939,2]
[339226124,1727376439332,-371.194741,0.0001939,2]
[339226125,1727376439354,-371.194741,0.0001939,2]
[339226126,1727376439375,-215.867688,0.0001939,2]
[339226127,1727376439399,-5783.31821476,0.0001939,3]
[339226128,1727376439517,-50984.37143114,0.0001939,3]
[339226129,1727376439539,-215.867688,0.0001939,2]
[339226130,1727376439560,-151.0,0.0001939,2]
[339226131,1727376439581,-485.492217,0.0001939,2]
[339226132,1727376439604,-485.492217,0.0001939,2]
[339226133,1727376439625,-281.366768,0.0001939,2]
[339226134,1727376439648,-281.366768,0.0001939,2]
[339226135,1727376439670,-593.319675,0.0001939,2]
[339226136,1727376439690,-593.319675,0.0001939,2]
[339226137,1727376439712,-151.0,0.0001939,2]
[339226138,1727376439734,-151.0,0.0001939,2]
[339226139,1727376439756,-383.419228,0.0001939,2]
[339226140,1727376439779,-383.419228,0.0001939,2]
[339226141,1727376439801,-151.0,0.0001939,2]
[339226142,1727376439823,-150.112233,0.000194,2]
[339226143,1727376439843,-19871.34920418,0.000194,2]
[339226144,1727376439864,-150.112233,0.000194,2]
[339226145,1727376439887,-151.0,0.000194,2]
[339226146,1727376439908,-151.0,0.000194,2]
[339226147,1727376439930,-466.0247925,0.00019448,2]
[339226148,1727376439956,-465.69174013,0.00019448,2]
[339226149,1727376439977,-151.0,0.00019484,2]
[339226150,1727376439998,-151.0,0.00019484,2]
[339226151,1727376440024,-207.287527,0.00019484,2]
[339226152,1727376440045,-151.0,0.00019484,2]
[339226153,1727376440066,-151.0,0.00019484,2]
[339226154,1727376440087,-156.381959,0.00019484,2]
[339226155,1727376440111,-156.381959,0.00019484,2]
[339226156,1727376440133,-151.0,0.00019495,2]
[339226157,1727376440155,-3848.0,0.00019495,2]
[339226158,1727376440176,-2020.19,0.000195,2]
[339226159,1727376440199,-1000.0,0.000195,2]
[339226160,1727376440334,-300.133,0.00019566,2]
[339226161,1727376440357,-3204.998,0.00019566,2]
[339226162,1727376440379,-151.0,0.00019566,2]
[339226163,1727376440402,-151.0,0.00019566,2]
[339226164,1727376440423,-151.0,0.00019595,2]
[339226165,1727376440445,-207.287527,0.00019595,2]
[339226166,1727376440466,-207.287527,0.00019595,2]
[339226167,1727376440487,-151.0,0.00019595,2]
[339226168,1727376440514,-231.044768,0.00019595,2]
[339226169,1727376440534,-156.381959,0.00019595,2]
[339226170,1727376440554,-156.381959,0.00019595,2]
[339226171,1727376440574,-151.0,0.00019595,2]
[339226172,1727376440595,-151.0,0.00019595,2]
[339226173,1727376440616,-1000.0,0.00019595,2]
[339226174,1727376440636,-1000.0,0.00019595,2]
[339226175,1727376440657,-1000.0,0.00019595,2]
[339226176,1727376440677,-1000.0,0.00019595,2]
[339226177,1727376440698,-1000.0,0.00019595,2]
[339226178,1727376440721,-1000.0,0.00019595,2]
[339226179,1727376440743,-1000.0,0.00019595,2]
[339226180,1727376440764,-1000.0,0.00019595,2]
[339226181,1727376440785,-1000.0,0.00019595,2]
[339226182,1727376440807,-1000.0,0.00019595,2]
[339226183,1727376440828,-1000.0,0.00019595,2]
[339226184,1727376440849,-1000.0,0.00019595,2]
[339226185,1727376440870,-1000.0,0.00019595,2]
[339226186,1727376440891,-1000.0,0.00019595,2]
[339226187,1727376440912,-1000.0,0.00019595,2]
[339226188,1727376440934,-1000.0,0.00019595,2]
[339226189,1727376440956,-1000.0,0.00019595,2]
[339226190,1727376440978,-1000.0,0.00019595,2]
[339226191,1727376441000,-350.47758505,0.00019595,2]
[339226192,1727376441141,-151.0,0.00018666,2]
[339226193,1727376441163,-151.0,0.00018756,2]
[339226194,1727376441185,-151.0,0.00018756,2]
[339226195,1727376441206,-151.0,0.00018766,2]
[339226196,1727376441228,-151.0,0.00018961,2]
[339226197,1727376441251,-151.0,0.0001897,2]
[339226198,1727376441276,-151.0,0.00019068,2]
[339226199,1727376441308,-151.0,0.0001939,2]
[339226200,1727376441332,-649.52241495,0.00019595,2]
[339226201,1727376441353,-1000.0,0.00019595,2]
[339226202,1727376441373,-1000.0,0.00019595,2]
[339226203,1727376441395,-261.813897,0.00019595,2]
[339226204,1727376441415,-371.194741,0.00019595,2]
[339226205,1727376441435,-371.194741,0.00019595,2]
[339226206,1727376441457,-215.867688,0.00019595,2]
[339226207,1727376441480,-215.867688,0.00019595,2]
[339226208,1727376441503,-485.492217,0.00019595,2]
[339226209,1727376441524,-485.492217,0.00019595,2]
[339226210,1727376441548,-281.366768,0.00019595,2]
[339226211,1727376441569,-281.366768,0.00019595,2]
[339226212,1727376441590,-593.319675,0.00019595,2]
[339226213,1727376441611,-593.319675,0.00019595,2]
[339226214,1727376441633,-151.0,0.00019595,2]
[339226215,1727376441654,-151.0,0.00019595,2]
[339226216,1727376441676,-383.419228,0.00019595,2]
[339226217,1727376441699,-383.419228,0.00019595,2]
[339226218,1727376441721,-151.0,0.00019595,2]
[339226219,1727376441743,-151.0,0.00019595,2]
[339226220,1727376441772,-525.0,0.00019595,2]
[339226221,1727376441795,-53079.011,0.00019595,2]
[339226222,1727376441817,-151.0,0.00019605,2]
[339226223,1727376441838,-151.0,0.00019631,2]
[339226224,1727376441859,-207.287527,0.0001969,2]
[339226225,1727376441880,-151.0,0.0001969,2]
[339226226,1727376441902,-156.381959,0.0001969,2]
[339226227,1727376441923,-156.381959,0.0001969,2]
[339226228,1727376441945,-150.112233,0.000197,2]
[339226229,1727376441966,-155.171708,0.000197,2]
[339226230,1727376441990,-150.112233,0.000197,2]
[339226231,1727376442013,-1000.0,0.00019751,2]
[339226232,1727376442037,-1000.0,0.00019757,2]
[339226233,1727376442058,-2158.82774869,0.000198,2]
[339226234,1727376442079,-1000.0,0.00019834,2]
[339226235,1727376442101,-542.60027455,0.00019838,2]
[339226236,1727376442122,-1000.0,0.00019873,2]
[339226237,1727376442144,-436.94985077,0.00019888,2]
[339226238,1727376442166,-159.956632,0.00019899,2]
[339226239,1727376442188,-150.112233,0.000199,2]
[339226240,1727376442209,-1025.20851104,0.000199,2]
[339226241,1727376442296,-151.0,0.0001899,2]
[339226242,1727376442322,-151.0,0.0001928,2]
[339226243,1727376442346,-151.0,0.0001939,2]
[339226244,1727376442369,-151.0,0.00019595,2]
[339226245,1727376442393,-1974.79148896,0.000199,2]
[339226246,1727376442414,-3816.354873,0.0001996,2]
[339226247,1727376442434,-500.0,0.00019973,2]
[339226248,1727376442455,-268.64208,0.0001998,2]
[339226249,1727376442477,-151.0,0.00019989,2]
[339226250,1727376442498,-151.0,0.00019989,2]
[339226251,1727376442519,-107641.79861678,0.0001999,2]
[339226252,1727376442541,-151.0,0.0001999,2]
[339226253,1727376442562,-151.0,0.0001999,2]
[339226254,1727376442584,-207.287527,0.0001999,2]
[339226255,1727376442605,-156.381959,0.0001999,2]
[339226256,1727376442626,-156.381959,0.0001999,2]
[339226257,1727376442647,-151.0,0.0001999,2]
[339226258,1727376442668,-371.194741,0.0001999,2]
[339226259,1727376442690,-371.194741,0.0001999,2]
[339226260,1727376442711,-215.867688,0.0001999,2]
[339226261,1727376442733,-215.867688,0.0001999,2]
[339226262,1727376442756,-485.492217,0.0001999,2]
[339226263,1727376442777,-485.492217,0.0001999,2]
[339226264,1727376442799,-281.366768,0.0001999,2]
[339226265,1727376442943,-281.366768,0.0001999,2]
[339226266,1727376442966,-593.319675,0.0001999,2]
[339226267,1727376442988,-593.319675,0.0001999,2]
[339226268,1727376443010,-151.0,0.0001999,2]
[339226269,1727376443036,-151.0,0.0001999,2]
[339226270,1727376443058,-383.419228,0.0001999,2]
[339226271,1727376443079,-383.419228,0.0001999,2]
[339226272,1727376443100,-151.0,0.0001999,2]
[339226273,1727376443123,-151.0,0.0001999,2]
[339226274,1727376443145,-160.0,0.00019999,2]
[339226275,1727376443168,-1167.90284554,0.00019999,2]
[339226276,1727376443190,-47818.49415344,0.0002,2]
[339226277,1727376445154,-500.0,0.00016164,2]
[339226278,1727376445175,-151.0,0.00018666,2]
[339226279,1727376445196,-151.0,0.00018756,2]
[339226280,1727376445218,-241.803058,0.00018756,2]
[339226281,1727376445238,-151.0,0.00018961,2]
[339226282,1727376445258,-151.0,0.00019068,2]
[339226283,1727376445283,-3848.0,0.0001929,2]
[339226284,1727376445304,-151.0,0.0001939,2]
[339226285,1727376445328,-151.0,0.00019595,2]
[339226286,1727376445349,-151.0,0.0001999,2]
[339226287,1727376445371,-232.970982,0.0001999,2]
[339226288,1727376445396,-85965.31142088,0.0002,2]
[339226289,1727376445416,-985.77139537,0.0002,10]
[339226290,1727376445435,-13290.709999,0.0002,7]
[339226291,1727376445455,-6565.6761576,0.0002,2]
[339226292,1727376445475,-100186.87674365,0.0002,2]
[339226293,1727376445495,-200.0,0.0002,21]
[339226294,1727376445516,-200.0,0.0002,21]
[339226295,1727376445536,-4900.0,0.0002,2]
[339226296,1727376445556,-610.57206133,0.0002,2]
[339226297,1727376445577,-11458.18583688,0.0002,2]
[339226298,1727376445597,-487.89716099,0.0002,2]
[339226299,1727376445618,-318.94273036,0.0002,2]
[339226300,1727376445638,-6555.26672333,0.0002,2]
[339226301,1727376445658,-186.66097608,0.0002,2]
[339226302,1727376445678,-1264.99999901,0.0002,2]
[339226303,1727376445699,-24139.28360753,0.0002,15]
[339226304,1727376445719,-7007.34985509,0.0002,2]
[339226305,1727376445739,-107355.284482,0.0002,2]
[339226306,1727376445759,-151.0,0.0002,2]
[339226307,1727376445780,-151.0,0.0002,2]
[339226308,1727376445801,-151.0,0.0002,2]
[339226309,1727376445821,-160.0,0.0002,4]
[339226310,1727376445845,-160.0,0.0002,5]
[339226311,1727376445868,-207.287527,0.0002,2]
[339226312,1727376445892,-207.287527,0.0002,2]
[339226313,1727376445915,-207.287532,0.0002,2]
[339226314,1727376445937,-156.381959,0.0002,2]
[339226315,1727376445958,-156.381959,0.0002,2]
[339226316,1727376445989,-156.381959,0.0002,2]
[339226317,1727376446019,-156.381959,0.0002,2]
[339226318,1727376446046,-156.381959,0.0002,2]
[339226319,1727376446076,-156.381964,0.0002,2]
[339226320,1727376446104,-151.0,0.0002,2]
[339226321,1727376446135,-151.0,0.0002,2]
[339226322,1727376446163,-151.0,0.0002,2]
[339226323,1727376446190,-371.194741,0.0002,2]
[339226324,1727376446220,-371.194741,0.0002,2]
[339226325,1727376446246,-371.194741,0.0002,2]
[339226326,1727376446272,-371.194741,0.0002,2]
[339226327,1727376446300,-371.194741,0.0002,2]
[339226328,1727376446333,-371.194741,0.0002,2]
[339226329,1727376446363,-151.23347702,0.0002,2]
[339226330,1727376446391,-215.867688,0.0002,2]
[339226331,1727376446419,-215.867688,0.0002,2]
[339226332,1727376446450,-215.867688,0.0002,2]
[339226333,1727376446478,-215.867688,0.0002,2]
[339226334,1727376446506,-215.867688,0.0002,2]
[339226335,1727376446536,-215.867688,0.0002,2]
[339226336,1727376446563,-151.19763648,0.0002,2]
[339226337,1727376446589,-485.492217,0.0002,2]
[339226338,1727376446617,-485.492222,0.0002,2]
[339226339,1727376446642,-1000.0,0.0002,2]
[339226340,1727376446671,-281.366768,0.0002,2]
[339226341,1727376446696,-281.366761,0.0002,2]
[339226342,1727376446720,-593.319675,0.0002,2]
[339226343,1727376446745,-593.319679,0.0002,2]
[339226344,1727376446771,-150.0,0.0002,2]
[339226345,1727376446795,-166.442845,0.0002,2]
[339226346,1727376446822,-196.869351,0.0002,2]
[339226347,1727376446849,-383.419228,0.0002,2]
[339226348,1727376446875,-383.41922,0.0002,2]
[339226349,1727376446901,-150.0,0.0002,2]
[339226350,1727376446927,-190.288558,0.0002,2]
[339226351,1727376446953,-151.0,0.0002,2]
[339226352,1727376446979,-151.0,0.0002,2]
[339226353,1727376447003,-151.0,0.0002,2]
[339226354,1727376447027,-151.0,0.0002,2]
[339226355,1727376447053,-880.72618356,0.00020001,15]
[339226356,1727376447078,-5004.31880622,0.0002001,4]
[339226357,1727376447103,-7598.98358345,0.0002014,4]
[339226358,1727376447130,-420.0,0.00020342,2]
[339226359,1727376447153,-600.0,0.0002037,3]
[339226360,1727376447173,-146813.0,0.00020377,2]
[339226361,1727376447195,-151.0,0.00020377,2]
[339226362,1727376447215,-371.194741,0.00020377,2]
[339226363,1727376447235,-371.194746,0.00020377,2]
[339226364,1727376447257,-215.867688,0.00020377,2]
[339226365,1727376447278,-215.867695,0.00020377,2]
[339226366,1727376447300,-151.0,0.00020377,2]
[339226367,1727376447326,-465.05123962,0.00020421,2]
[339226368,1727376447348,-465.03458701,0.00020421,2]
[339226369,1727376447369,-1049.04192041,0.00020521,2]
[339226370,1727376447574,-14638.79766847,0.0002061,2]
[339226371,1727376447596,-589.0,0.00020642,2]
[339226372,1727376447616,-589.0,0.00020642,2]
[339226373,1727376447637,-589.0,0.00020642,2]
[339226374,1727376447658,-589.0,0.00020642,2]
[339226375,1727376447677,-589.0,0.00020642,2]
[339226376,1727376447697,-589.0,0.00020642,2]
[339226377,1727376447718,-589.0,0.00020642,2]
[339226378,1727376447742,-589.0,0.00020642,2]
[339226379,1727376447767,-589.0,0.00020642,2]
[339226380,1727376447787,-589.0,0.00020642,2]
[339226381,1727376447809,-589.0,0.00020642,2]
[339226382,1727376447831,-589.0,0.00020642,2]
[339226383,1727376447852,-589.0,0.00020642,2]
[339226384,1727376447873,-589.0,0.00020642,2]
[339226385,1727376447894,-153.0,0.00020642,2]
[339226386,1727376447915,-153.0,0.00020642,2]
[339226387,1727376447936,-153.0,0.00020642,2]
[339226388,1727376447959,-1000.0,0.00021,21]
[339226389,1727376447979,-259.71597667,0.00021,2]
[339226390,1727376447999,-10194.42096028,0.00021,2]
[339226391,1727376448021,-234.05181131,0.00021,2]
[339226392,1727376448049,-500.0,0.00021,30]
[339226393,1727376448070,-500.0,0.00021,30]
[339226394,1727376448089,-500.0,0.00021,30]
[339226395,1727376448109,-500.0,0.00021,30]
[339226396,1727376448129,-607.21200268,0.00021,30]
[339226397,1727376448149,-508.1342584,0.00021,30]
[339226398,1727376448170,-600.0,0.00021,30]
[339226399,1727376448191,-600.0,0.00021,30]
[339226400,1727376448211,-600.0,0.00021,30]
[339226401,1727376448232,-600.0,0.00021,30]
[339226402,1727376448253,-600.0,0.00021,30]
[339226403,1727376448280,-500.0,0.00021,30]
[339226404,1727376448302,-600.0,0.00021,30]
[339226405,1727376448327,-111.85023632,0.00021,30]
[339226406,1727376448400,-500.0,0.00018904,2]
[339226407,1727376448422,-488.14976368,0.00021,30]
[339226408,1727376448443,-600.0,0.00021,30]
[339226409,1727376448464,-954.41237879,0.00021,30]
[339226410,1727376448485,-510.77584455,0.00021,30]
[339226411,1727376448506,-1100.0,0.00021,30]
[339226412,1727376448529,-1100.0,0.00021,30]
[339226413,1727376448550,-881.5074639,0.00021,30]
[339226414,1727376448570,-1100.0,0.00021,30]
[339226415,1727376448596,-500.0,0.00021,30]
[339226416,1727376448618,-1100.0,0.00021,30]
[339226417,1727376448639,-1100.0,0.00021,30]
[339226418,1727376448674,-600.0,0.00021,30]
[339226419,1727376448696,-1100.0,0.00021,30]
[339226420,1727376448719,-600.0,0.00021,30]
[339226421,1727376448741,-1100.0,0.00021,30]
[339226422,1727376448763,-600.0,0.00021,30]
[339226423,1727376448786,-600.0,0.00021,30]
[339226424,1727376448808,-1100.0,0.00021,30]
[339226425,1727376448830,-600.0,0.00021,30]
[339226426,1727376448852,-1100.0,0.00021,30]
[339226427,1727376448874,-1100.0,0.00021,30]
[339226428,1727376448900,-600.0,0.00021,30]
[339226429,1727376448922,-1100.0,0.00021,30]
[339226430,1727376448944,-600.0,0.00021,30]
[339226431,1727376448966,-1100.0,0.00021,30]
[339226432,1727376448987,-700.0,0.00021,30]
[339226433,1727376449008,-600.0,0.00021,30]
[339226434,1727376449031,-1100.0,0.00021,30]
[339226435,1727376449052,-700.0,0.00021,30]
[339226436,1727376449073,-600.0,0.00021,30]
[339226437,1727376449095,-1602.78456026,0.00021,30]
[339226438,1727376449117,-700.0,0.00021,30]
[339226439,1727376449139,-600.0,0.00021,30]
[339226440,1727376449160,-700.0,0.00021,30]
[339226441,1727376449182,-600.0,0.00021,30]
[339226442,1727376449203,-700.0,0.00021,30]
[339226443,1727376449224,-600.0,0.00021,30]
[339226444,1727376449247,-700.0,0.00021,30]
[339226445,1727376449269,-600.0,0.00021,30]
[339226446,1727376449290,-700.0,0.00021,30]
[339226447,1727376449316,-936.12036511,0.00021,30]
[339226448,1727376449342,-700.0,0.00021,30]
[339226449,1727376449366,-700.0,0.00021,30]
[339226450,1727376449389,-700.0,0.00021,30]
[339226451,1727376449412,-700.0,0.00021,30]
[339226452,1727376449436,-700.0,0.00021,30]
[339226453,1727376449459,-700.0,0.00021,30]
[339226454,1727376449480,-1091.82928336,0.00021,30]
[339226455,1727376449502,-500.0,0.00021,30]
[339226456,1727376449528,-500.0,0.00021,30]
[339226457,1727376449549,-500.0,0.00021,30]
[339226458,1727376449571,-280.0,0.00021,2]
[339226459,1727376449593,-275.4400204,0.00021,30]
[339226460,1727376449616,-3000.0,0.00021,2]
[339226461,1727376449637,-150.0,0.00021,2]
[339226462,1727376449660,-500.0,0.00021,30]
[339226463,1727376449683,-600.0,0.00021,30]
[339226464,1727376449704,-500.0,0.00021,30]
[339226465,1727376449726,-600.0,0.00021,30]
[339226466,1727376449751,-500.0,0.00021,30]
[339226467,1727376449778,-600.0,0.00021,30]
[339226468,1727376449799,-276.82944441,0.00021,30]
[339226469,1727376449821,-500.0,0.00021,30]
[339226470,1727376449843,-600.0,0.00021,30]
[339226471,1727376449865,-500.0,0.00021,30]
[339226472,1727376449886,-600.0,0.00021,30]
[339226473,1727376449907,-500.0,0.00021,30]
[339226474,1727376449929,-600.0,0.00021,30]
[339226475,1727376449953,-600.0,0.00021,30]
[339226476,1727376449975,-600.0,0.00021,30]
[339226477,1727376449997,-600.0,0.00021,30]
[339226478,1727376450020,-600.0,0.00021,30]
[339226479,1727376450046,-600.0,0.00021,30]
[339226480,1727376450068,-500.0,0.00021,30]
[339226481,1727376450092,-600.0,0.00021,30]
[339226482,1727376450114,-500.0,0.00021,30]
[339226483,1727376450138,-600.0,0.00021,30]
[339226484,1727376450161,-600.0,0.00021,30]
[339226485,1727376450184,-503.8324005,0.00021,30]
[339226486,1727376450206,-500.0,0.00021,30]
[339226487,1727376450228,-499.3,0.00021,30]
[339226488,1727376450249,-559.49293444,0.00021,30]
[339226489,1727376450271,-1100.0,0.00021,30]
[339226490,1727376450293,-500.0,0.00021,30]
[339226491,1727376450318,-1100.0,0.00021,30]
[339226492,1727376450339,-500.0,0.00021,30]
[339226493,1727376450362,-1100.0,0.00021,30]
[339226494,1727376450383,-600.0,0.00021,30]
[339226495,1727376450408,-1100.0,0.00021,30]
[339226496,1727376450430,-600.0,0.00021,30]
[339226497,1727376450453,-1100.0,0.00021,30]
[339226498,1727376450474,-600.0,0.00021,30]
[339226499,1727376450496,-1100.0,0.00021,30]
[339226500,1727376450519,-600.0,0.00021,30]
[339226501,1727376450541,-1100.0,0.00021,30]
[339226502,1727376450562,-600.0,0.00021,30]
[339226503,1727376450584,-1100.0,0.00021,30]
[339226504,1727376450606,-546.44831288,0.00021,30]
[339226505,1727376450779,-600.0,0.00021,30]
[339226506,1727376450802,-1100.0,0.00021,30]
[339226507,1727376450824,-939.74150048,0.00021,30]
[339226508,1727376450848,-600.0,0.00021,30]
[339226509,1727376450869,-1100.0,0.00021,30]
[339226510,1727376450891,-503.32546936,0.00021,30]
[339226511,1727376450912,-600.0,0.00021,30]
[339226512,1727376450935,-700.0,0.00021,30]
[339226513,1727376450959,-600.0,0.00021,30]
[339226514,1727376450981,-1100.0,0.00021,30]
[339226515,1727376451002,-503.94827431,0.00021,30]
[339226516,1727376451027,-1100.0,0.00021,30]
[339226517,1727376451050,-700.0,0.00021,30]
[339226518,1727376451072,-600.0,0.00021,30]
[339226519,1727376451093,-1100.0,0.00021,30]
[339226520,1727376451115,-600.0,0.00021,30]
[339226521,1727376451136,-1100.0,0.00021,30]
[339226522,1727376451157,-700.0,0.00021,30]
[339226523,1727376451182,-600.0,0.00021,30]
[339226524,1727376451221,-700.0,0.00021,30]
[339226525,1727376451244,-500.0,0.00021,30]
[339226526,1727376451267,-600.0,0.00021,30]
[339226527,1727376451293,-700.0,0.00021,30]
[339226528,1727376451319,-500.0,0.00021,30]
[339226529,1727376451343,-700.0,0.00021,30]
[339226530,1727376451366,-154.74467129,0.00021,30]
[339226531,1727376451390,-600.0,0.00021,30]
[339226532,1727376451413,-700.0,0.00021,30]
[339226533,1727376451436,-600.0,0.00021,30]
[339226534,1727376451458,-700.0,0.00021,30]
[339226535,1727376451482,-700.0,0.00021,30]
[339226536,1727376451504,-700.0,0.00021,30]
[339226537,1727376451536,-700.0,0.00021,30]
[339226538,1727376451559,-700.0,0.00021,30]
[339226539,1727376451580,-700.0,0.00021,30]
[339226540,1727376451603,-700.0,0.00021,30]
[339226541,1727376451624,-499.3,0.00021,30]
[339226542,1727376451646,-154.74467129,0.00021,30]
[339226543,1727376451667,-500.0,0.00021,30]
[339226544,1727376451688,-500.0,0.00021,30]
[339226545,1727376451710,-500.0,0.00021,30]
[339226546,1727376451732,-500.0,0.00021,30]
[339226547,1727376451753,-600.0,0.00021,30]
[339226548,1727376451774,-3000.0,0.0002101,2]
[339226549,1727376451796,-3000.0,0.0002102,2]
[339226550,1727376451818,-3000.0,0.0002103,2]
[339226551,1727376451841,-3000.0,0.0002104,2]
[339226552,1727376451863,-3000.0,0.0002105,2]
[339226553,1727376451889,-3000.0,0.0002106,2]
[339226554,1727376451913,-3000.0,0.0002107,2]
[339226555,1727376451935,-150.0,0.00021073,2]
[339226556,1727376451958,-3000.0,0.0002108,2]
[339226557,1727376451981,-3000.0,0.0002109,2]
[339226558,1727376452003,-279.33171329,0.00021096,2]
[339226559,1727376452035,-3000.0,0.000211,2]
[339226560,1727376452058,-3000.0,0.0002111,2]
[339226561,1727376452080,-3000.0,0.0002112,2]
[339226562,1727376452102,-3000.0,0.0002113,2]
[339226563,1727376452126,-3000.0,0.0002114,2]
[339226564,1727376452148,-3000.0,0.0002115,2]
[339226565,1727376452172,-3000.0,0.0002116,2]
[339226566,1727376452194,-3000.0,0.0002117,2]
[339226567,1727376452216,-3000.0,0.0002118,2]